bitfinex/quotes_SOLUSD_20260308
["timestamp","ask_amount","ask_price","bid_price","bid_amount"]
[1772976872687,0.76047028,81.594,81.548,0.75519094]
[1772976873585,0.76047028,81.594,81.536,0.75438544]
[1772976873775,0.71201961,81.591,81.536,0.75438544]
[1772976875701,0.71201961,81.588,81.538,0.75438544]
[1772976879598,0.71201961,81.586,81.54,0.75438544]
[1772976880190,0.71201961,81.586,81.532,0.75438544]
[1772976881578,0.71201961,81.584,81.534,0.75438544]
[1772976884190,0.71201961,81.582,81.537,0.75438544]
[1772976884388,0.71201961,81.582,81.538,0.75438544]
[1772976885588,12.25745559,81.583,81.538,0.75438544]
[1772976886477,31.35530666,81.584,81.54,0.75438544]
[1772976886781,0.71201961,81.583,81.54,0.75438544]
[1772976891291,0.71201961,81.581,81.54,0.75438544]
[1772976892193,0.71201961,81.579,81.54,0.75438544]
[1772976892395,0.71201961,81.578,81.522,0.75438544]
[1772976892897,12.25760584,81.582,81.528,0.75438544]
[1772976893203,0.71201961,81.579,81.53,1.03870858]
[1772976893405,0.71201961,81.579,81.531,0.75438544]
[1772976897497,42.90267221,81.58,81.534,0.75438544]
[1772976897498,0.71201961,81.577,81.534,0.75438544]
[1772976898590,12.25820686,81.578,81.534,0.75438544]
[1772976899311,12.97022647,81.578,81.534,0.75438544]
[1772976899705,0.71201961,81.577,81.536,1.03870858]
[1772976899891,0.71201961,81.577,81.538,0.75438544]
[1772976901495,42.8926825,81.599,81.538,0.75438544]
[1772976901696,0.71201961,81.602,81.543,0.75438544]
[1772976901905,0.71201961,81.625,81.55,0.75438544]
[1772976902110,0.71201961,81.649,81.567,0.75438544]
[1772976902415,0.71201961,81.649,81.558,0.14216157]
[1772976902416,0.71201961,81.649,81.578,0.75438544]
[1772976903610,0.28432314,81.675,81.57,0.28432314]
[1772976903611,0.74184435,81.665,81.592,0.72560688]
[1772976903915,12.24205587,81.686,81.618,0.72560688]
[1772976904087,6.39222996,81.734,81.618,0.72560688]
[1772976904088,0.71568916,81.697,81.618,0.72560688]
[1772976904290,0.71568916,81.697,81.626,3.69383402]
[1772976904495,12.23960245,81.702,81.628,0.7308627]
[1772976904919,61.1849694,81.72,81.643,1.01518584]
[1772976904920,12.23702966,81.72,81.643,1.01518584]
[1772976905213,1e-08,81.71,81.658,0.7308627]
[1772976906010,0.71568916,81.709,81.664,0.7308627]
[1772976906827,0.71568916,81.709,81.66,0.7308627]
[1772976907128,1e-08,81.71,81.661,0.7308627]
[1772976907694,0.71568917,81.71,81.659,12.24604758]
[1772976907917,0.71568916,81.708,81.656,0.7308627]
[1772976908300,0.71568916,81.708,81.649,0.7308627]
[1772976910020,0.71568916,81.706,81.651,0.7308627]
[1772976910395,0.71568916,81.705,81.651,0.7308627]
[1772976911194,0.71568916,81.703,81.653,0.7308627]
[1772976911396,0.71568916,81.702,81.653,0.7308627]
[1772976911596,0.71568916,81.702,81.644,0.7308627]
[1772976912808,0.71568916,81.699,81.645,12.24814746]
[1772976913318,0.71568916,81.699,81.646,0.28432314]
[1772976913524,12.23975226,81.701,81.647,0.7308627]
[1772976915220,12.23975226,81.701,81.646,0.28432314]
[1772976915221,0.71568916,81.705,81.65,0.7308627]
[1772976918717,0.71568916,81.703,81.652,0.7308627]
[1772976919820,0.71568916,81.702,81.629,0.7308627]
[1772976920012,0.71568916,81.702,81.63,0.7308627]
[1772976921722,0.71568916,81.699,81.633,0.7308627]
[1772976925026,0.71568916,81.699,81.618,3.69383402]
[1772976925027,0.71568916,81.697,81.636,0.7308627]
[1772976926525,0.71568916,81.697,81.639,0.7308627]
[1772976926916,0.71568916,81.696,81.639,0.7308627]
[1772976927117,0.71568916,81.694,81.641,0.7308627]
[1772976927522,0.71568916,81.694,81.642,0.7308627]
[1772976928821,0.71568916,81.692,81.645,0.7308627]
[1772976930935,0.71568916,81.69,81.647,1.01518584]
[1772976931234,0.71568916,81.69,81.648,0.7308627]
[1772976932029,62.0,81.689,81.648,0.7308627]
[1772976932329,0.71568916,81.687,81.64,0.7308627]
[1772976932512,0.71568916,81.686,81.64,0.7308627]
[1772976937138,0.77560821,81.684,81.637,30.6233693]
[1772976937332,0.77560821,81.684,81.637,31.34871868]
[1772976937538,0.77560821,81.684,81.63,12.97574751]
[1772976937738,0.77560821,81.684,81.604,61.27136408]
[1772976937739,0.77560821,81.682,81.617,12.25234938]
[1772976937919,0.77560821,81.679,81.618,0.72534938]
[1772976938116,0.77560821,81.677,81.618,0.72534938]
[1772976938320,0.77560821,81.676,81.618,0.72534938]
[1772976938741,0.77560821,81.676,81.619,0.72534938]
[1772976939117,12.2436486,81.675,81.622,0.72534938]
[1772976939633,13.01925681,81.675,81.622,0.72534938]
[1772976940138,12.24308379,81.679,81.625,0.72534938]
[1772976940340,13.01640924,81.694,81.625,0.72534938]
[1772976940635,0.77560821,81.693,81.625,0.72534938]
[1772976941220,0.77560821,81.691,81.628,0.72534938]
[1772976941538,42.8438525,81.692,81.628,0.72534938]
[1772976941539,0.28432314,81.688,81.628,0.72534938]
[1772976941717,0.77560821,81.686,81.628,0.72534938]
[1772976943445,0.77560821,81.684,81.631,0.72534938]
[1772976944842,0.77560821,81.682,81.633,0.72534938]
[1772976948244,0.77560821,81.68,81.624,0.72534938]
[1772976948449,0.77560821,81.675,81.618,0.72534938]
[1772976948647,0.77560821,81.673,81.604,0.72534938]
[1772976948841,0.77560821,81.671,81.604,0.72534938]
[1772976950525,0.77560821,81.669,81.606,0.72534938]
[1772976951343,0.77560821,81.669,81.607,0.72534938]
[1772976951742,0.77560821,81.667,81.609,0.72534938]
[1772976952247,0.77560821,81.666,81.609,0.72534938]
[1772976954553,0.14216157,81.667,81.588,3.69383402]
[1772976954554,0.77560821,81.664,81.611,0.72534938]
[1772976955133,0.77560821,81.662,81.611,0.72534938]
[1772976958161,0.77560821,81.659,81.613,0.72534938]
[1772976961257,0.77560821,81.659,81.612,42.88585011]
[1772976961258,0.77560821,81.657,81.615,0.72534938]
[1772976964252,12.2464975,81.656,81.617,0.70487201]
[1772976964651,12.98553134,81.656,81.617,0.70487201]
[1772976964966,0.73903384,81.655,81.617,0.70487201]
[1772976965261,62.0,81.674,81.62,0.28432314]
[1772976965563,12.2436486,81.675,81.621,0.70487201]
[1772976966260,12.24244946,81.683,81.622,42.88059591]
[1772976966451,12.9814833,81.683,81.627,0.70487201]
[1772976966648,0.73903384,81.682,81.627,0.70487201]
[1772976966856,12.24244946,81.683,81.627,0.70487201]
[1772976967156,12.24170012,81.688,81.627,0.70487201]
[1772976967473,0.73903384,81.687,81.627,0.70487201]
[1772976969039,0.73903384,81.685,81.629,0.70487201]
[1772976971264,0.73903384,81.683,81.631,0.70487201]
[1772976973060,0.73903384,81.682,81.631,0.70487201]
[1772976973247,42.84804857,81.684,81.612,61.2653333]
[1772976973248,0.73903384,81.679,81.633,0.70487201]
[1772976975168,0.73903384,81.677,81.635,0.70487201]
[1772976975966,0.73903384,81.683,81.636,0.70487201]
[1772976976154,0.73903384,81.69,81.636,0.70487201]
[1772976977053,12.97758773,81.709,81.639,0.70487201]
[1772976977260,0.73903384,81.709,81.644,0.70487201]
[1772976977465,0.73903384,81.709,81.647,0.70487201]
[1772976977655,0.73903384,81.717,81.649,0.70487201]
[1772976977980,12.98869783,81.725,81.655,0.71526224]
[1772976978283,0.75253035,81.708,81.66,0.71526224]
[1772976978573,0.75253035,81.708,81.664,0.71526224]
[1772976979967,62.0,81.732,81.666,0.71526224]
[1772976979968,0.75253035,81.706,81.666,0.71526224]
[1772976980178,0.75253035,81.706,81.665,12.24514786]
[1772976980955,0.75253035,81.706,81.666,0.71526224]
[1772976982074,0.75253035,81.704,81.668,0.71526224]
[1772976982976,0.75253035,81.704,81.667,12.24484798]
[1772976984067,0.75253035,81.704,81.668,0.71526224]
[1772976984268,0.75253035,81.704,81.667,42.85696793]
[1772976984269,0.75253035,81.702,81.67,0.71526224]
[1772976985760,0.75253035,81.702,81.659,4.10034711]
[1772976985957,0.75253035,81.699,81.625,0.71526224]
[1772976986183,0.75253035,81.693,81.627,0.71526224]
[1772976986365,0.75253035,81.692,81.627,0.71526224]
[1772976986569,0.75253035,81.691,81.628,0.71526224]
[1772976986866,0.28432314,81.693,81.628,0.71526224]
[1772976986867,0.89469192,81.689,81.628,0.71526224]
[1772976987055,0.75253035,81.687,81.628,0.71526224]
[1772976987261,0.75253035,81.686,81.628,0.71526224]
[1772976987763,0.75253035,81.686,81.626,42.87849459]
[1772976988359,0.75253035,81.683,81.626,30.62749614]
[1772976988560,0.75253035,81.683,81.627,0.71526224]
[1772976989766,0.75253035,81.683,81.628,0.71526224]
[1772976990887,0.75253035,81.681,81.63,0.71526224]
[1772976993400,0.70177137,81.679,81.632,0.73246865]
[1772976995976,0.70177137,81.677,81.634,0.73246865]
[1772976996990,0.70177137,81.676,81.634,0.73246865]
[1772976998175,0.70177137,81.674,81.635,12.24964782]
[1772976999182,0.70177137,81.672,81.628,12.25069828]
[1772976999488,0.70177137,81.672,81.628,12.98316693]
[1772976999689,0.70177137,81.672,81.629,0.73246865]
[1772977000264,0.70177137,81.669,81.63,12.25039813]
[1772977000693,0.70177137,81.669,81.598,3.69383402]
[1772977000694,0.70177137,81.668,81.621,0.73246865]
[1772977000908,0.70177137,81.668,81.613,30.63235575]
[1772977000909,0.70177137,81.668,81.614,0.73246865]
[1772977001070,0.70177137,81.666,81.614,0.73246865]
[1772977001579,0.70177137,81.665,81.614,0.73246865]
[1772977002375,0.70177137,81.662,81.616,0.73246865]
[1772977005189,0.70177137,81.66,81.618,0.73246865]
[1772977008194,0.70177137,81.658,81.62,0.73246865]
[1772977010380,0.70177137,81.665,81.622,0.73246865]
[1772977015199,42.85854231,81.664,81.623,12.25144873]
[1772977015496,0.70177137,81.663,81.624,0.73246865]
[1772977018196,12.2455977,81.662,81.625,12.25114854]
[1772977018399,0.70177137,81.661,81.626,0.73246865]
[1772977020801,0.70177137,81.659,81.612,0.73246865]
[1772977021106,0.98609451,81.658,81.588,0.73246865]
[1772977021403,0.70177137,81.654,81.588,0.73246865]
[1772977021594,0.70177137,81.641,81.582,12.2575167]
[1772977021800,0.70177137,81.636,81.582,12.2575167]
[1772977021995,0.70177137,81.636,81.578,12.25820617]
[1772977022501,0.70177137,81.632,81.575,0.73246865]
[1772977022796,0.70177137,81.632,81.573,12.25893864]
[1772977022797,0.71534069,81.628,81.573,12.25893864]
[1772977023001,0.28432314,81.627,81.573,12.25893864]
[1772977023200,0.71534069,81.625,81.573,12.25893864]
[1772977023601,0.71534069,81.625,81.574,0.72766357]
[1772977023987,0.71534069,81.625,81.575,0.72766357]
[1772977025309,0.71534069,81.625,81.578,0.71316555]
[1772977025496,0.71289649,81.623,81.578,0.71316555]
[1772977027942,0.71289649,81.623,81.577,0.28432314]
[1772977027943,0.71289649,81.621,81.58,0.71316555]
[1772977030210,0.71289649,81.619,81.582,0.71316555]
[1772977030609,62.0,81.62,81.582,0.71316555]
[1772977031920,62.0,81.62,81.584,0.71316555]
[1772977032496,62.0,81.62,81.585,0.71316555]
[1772977033322,0.71289649,81.622,81.585,0.71316555]
[1772977036222,0.71289649,81.628,81.588,0.71316555]
[1772977036611,0.71289649,81.634,81.588,0.71316555]
[1772977039329,0.71289649,81.632,81.59,0.71316555]
[1772977041624,0.71289649,81.63,81.592,0.71316555]
[1772977044803,0.28432314,81.655,81.571,0.28432314]
[1772977044804,0.71289649,81.645,81.595,0.71316555]
[1772977045014,0.71289649,81.651,81.597,0.85532712]
[1772977047234,0.71289649,81.649,81.599,0.71316555]
[1772977050638,0.71289649,81.649,81.602,0.71316555]
[1772977051143,0.71289649,81.669,81.605,0.71316555]
[1772977051344,0.71289649,81.666,81.605,0.71316555]
[1772977055614,0.68170259,81.663,81.589,0.66255954]
[1772977055819,0.68170259,81.663,81.59,0.66255954]
[1772977056814,0.68170259,81.663,81.591,0.66255954]
[1772977058718,0.68170259,81.663,81.59,0.28432314]
[1772977058719,0.68170259,81.66,81.594,0.66255954]
[1772977059928,0.68170259,81.66,81.597,0.66255954]
[1772977060823,3.69383402,81.681,81.602,0.94688268]
[1772977060824,0.68170259,81.679,81.602,0.94688268]
[1772977061144,0.68170259,81.678,81.603,0.66255954]
[1772977063445,0.68170259,81.676,81.606,0.66255954]
[1772977064937,0.68170259,81.676,81.609,0.66255954]
[1772977065333,0.68170259,81.676,81.616,0.66255954]
[1772977065540,0.68170259,81.676,81.617,0.66255954]
[1772977066132,0.68170259,81.688,81.617,0.66255954]
[1772977066332,12.03994911,81.73,81.612,104.15135028]
[1772977066333,0.68170259,81.708,81.635,0.94688268]
[1772977066641,0.68170259,81.708,81.641,0.66255954]
[1772977067132,0.68170259,81.708,81.64,15.92836045]
[1772977067133,0.68170259,81.708,81.646,0.94688268]
[1772977067328,0.68170259,81.708,81.651,3.69383402]
[1772977067646,0.68170259,81.706,81.654,0.66255954]
[1772977067842,0.68170259,81.706,81.651,0.66255954]
[1772977068143,0.68170259,81.705,81.651,0.66255954]
[1772977069948,0.68170259,81.702,81.652,12.24709743]
[1772977070726,0.68170259,81.702,81.653,0.66255954]
[1772977070945,0.68170259,81.702,81.652,12.24709743]
[1772977071145,0.68170259,81.702,81.65,5.13297785]
[1772977071329,0.68170259,81.702,81.65,17.38023894]
[1772977071639,0.68170259,81.702,81.651,0.66255954]
[1772977072029,0.68170259,81.7,81.653,0.66255954]
[1772977075240,12.24005189,81.699,81.654,42.86379111]
[1772977075437,0.68170259,81.698,81.655,0.66255954]
[1772977078346,0.68170259,81.696,81.656,12.2464975]
[1772977078539,0.68170259,81.696,81.657,0.66255954]
[1772977078936,0.68170259,81.696,81.658,0.66255954]
[1772977079150,0.68170259,81.696,81.651,5.30668575]
[1772977079353,0.68170259,81.696,81.652,0.66255954]
[1772977079937,62.0,81.695,81.652,0.66255954]
[1772977080157,0.68170259,81.694,81.652,0.66255954]
[1772977082965,0.69367531,81.692,81.654,0.6847057]
[1772977083154,0.69367531,81.69,81.654,0.6847057]
[1772977084760,0.68746881,81.688,81.655,12.24664748]
[1772977087064,12.24184998,81.687,81.656,0.67274799]
[1772977088168,0.68746881,81.686,81.658,0.67274799]
[1772977089263,0.68746881,81.686,81.657,12.24634752]
[1772977089452,0.68746881,81.686,81.654,0.67274799]
[1772977090766,0.68746881,81.684,81.656,0.67274799]
[1772977092569,0.68746881,81.682,81.656,0.67274799]
[1772977093073,0.68746881,81.682,81.658,0.67274799]
[1772977093448,0.68746881,81.682,81.657,12.24634752]
[1772977093769,0.68746881,81.682,81.653,12.24689138]
[1772977094261,0.68746881,81.682,81.653,12.91963937]
[1772977094458,12.24274923,81.681,81.654,0.67274799]
[1772977094652,0.68746881,81.68,81.654,0.67274799]
[1772977095767,0.68746881,81.702,81.654,0.67274799]
[1772977096143,0.68746881,81.701,81.651,5.30668575]
[1772977096342,0.68746881,81.698,81.651,5.30668575]
[1772977096545,42.84123039,81.697,81.651,5.30668575]
[1772977096764,0.68746881,81.696,81.651,5.30668575]
[1772977096964,0.68746881,81.696,81.652,12.24709743]
[1772977097270,0.68746881,81.696,81.653,0.67274799]
[1772977099369,0.68746881,81.693,81.654,12.91954545]
[1772977099578,0.68746881,81.693,81.655,0.67274799]
[1772977099767,12.24080103,81.694,81.655,0.67274799]
[1772977100074,0.68746881,81.721,81.657,0.67274799]
[1772977100256,0.72100001,81.722,81.657,0.67274799]
[1772977100760,0.72100001,81.722,81.66,0.67274799]
[1772977100965,0.72100001,81.722,81.663,0.67274799]
[1772977101276,0.14360648,81.722,81.669,0.67274799]
[1772977101457,0.14360648,81.722,81.675,0.67274799]
[1772977101973,0.71413714,81.728,81.675,0.67274799]
[1772977102353,0.71413714,81.728,81.678,0.67274799]
[1772977103459,0.68746881,81.727,81.681,0.67274799]
[1772977103858,0.68746881,81.725,81.681,0.67274799]
[1772977106164,0.68746881,81.723,81.683,0.67274799]
[1772977107271,12.92332721,81.727,81.684,0.67274799]
[1772977107577,0.68746881,81.726,81.684,0.67274799]
[1772977108269,0.68746881,81.724,81.686,0.67274799]
[1772977110580,0.68746881,81.722,81.688,0.67274799]
[1772977113974,12.23675676,81.721,81.689,12.24155026]
[1772977114284,0.6548244,81.72,81.689,12.24155026]
[1772977115680,0.6548244,81.72,81.682,12.94628467]
[1772977116066,0.6548244,81.718,81.683,0.70369783]
[1772977117291,0.6548244,81.716,81.684,12.24229959]
[1772977118004,0.6548244,81.716,81.684,12.94599742]
[1772977118366,0.6548244,81.716,81.665,0.70369783]
[1772977118770,0.6548244,81.714,81.665,0.70369783]
[1772977119781,0.6548244,81.712,81.668,0.70369783]
[1772977123296,12.23825433,81.711,81.669,42.85591839]
[1772977123595,0.6548244,81.709,81.653,12.95064527]
[1772977124096,0.6548244,81.709,81.654,0.70369783]
[1772977124891,0.6548244,81.706,81.655,12.24664748]
[1772977125593,0.6548244,81.706,81.655,12.95034531]
[1772977126286,0.93914754,81.704,81.655,12.95034531]
[1772977126493,0.6548244,81.703,81.655,12.24664748]
[1772977126696,0.6548244,81.703,81.656,0.70369783]
[1772977127978,12.23960245,81.702,81.657,42.86221633]
[1772977128307,0.6548244,81.701,81.658,0.70369783]
[1772977132418,0.6548244,81.699,81.659,0.70369783]
[1772977134009,0.6548244,81.697,81.648,12.24757677]
[1772977134208,0.6548244,81.696,81.648,12.24757677]
[1772977134510,0.6548244,81.693,81.637,0.70369783]
[1772977134806,0.6548244,81.69,81.637,0.70369783]
[1772977135109,0.6548244,81.69,81.635,12.24964782]
[1772977135806,0.6548244,81.687,81.631,12.25013854]
[1772977136201,0.6548244,81.687,81.561,103.6]
[1772977136202,0.6548244,81.682,81.614,0.70369783]
[1772977136514,0.6548244,81.68,81.616,0.70369783]
[1772977138103,0.6548244,81.68,81.617,0.70369783]
[1772977138491,0.6548244,81.678,81.619,0.70369783]
[1772977139905,0.6548244,81.677,81.619,0.70369783]
[1772977140499,0.6548244,81.675,81.621,0.70369783]
[1772977141309,0.6548244,81.675,81.622,0.70369783]
[1772977143414,0.6548244,81.675,81.625,0.67976132]
[1772977143609,0.70538525,81.682,81.625,0.67976132]
[1772977144599,0.70538525,81.695,81.628,0.67976132]
[1772977145617,0.65585655,81.693,81.631,0.66555076]
[1772977149492,42.8438525,81.692,81.632,42.875343]
[1772977149815,0.65585655,81.691,81.634,0.66555076]
[1772977150398,0.65585655,81.69,81.634,0.66555076]
[1772977153401,0.65585655,81.688,81.636,0.9498739]
[1772977153707,0.65585655,81.688,81.637,0.66555076]
[1772977154824,0.65585655,81.686,81.637,0.66555076]
[1772977158212,0.65585655,81.684,81.639,0.66555076]
[1772977163226,0.65585655,81.682,81.641,0.66555076]
[1772977165131,0.65585655,81.694,81.644,0.14216157]
[1772977165314,0.65585655,81.694,81.645,0.66555076]
[1772977166424,12.23810456,81.712,81.648,0.66555076]
[1772977166620,12.89291371,81.719,81.648,0.66555076]
[1772977166807,0.65585655,81.718,81.648,0.66555076]
[1772977167212,12.23735575,81.717,81.653,0.66555076]
[1772977167628,12.23735575,81.717,81.654,0.66555076]
[1772977167827,12.8932123,81.717,81.654,0.66555076]
[1772977168221,12.8932123,81.717,81.656,0.9498739]
[1772977168531,0.65585655,81.717,81.66,0.66555076]
[1772977169837,0.65585655,81.717,81.665,0.66555076]
[1772977170035,0.65585655,81.717,81.665,0.28432314]
[1772977170338,0.65585655,81.717,81.666,0.66555076]
[1772977170559,0.65585655,81.722,81.669,0.66555076]
[1772977171740,0.65585655,81.722,81.671,0.28432314]
[1772977171932,0.65585655,81.722,81.672,0.66555076]
[1772977172938,0.69035368,81.72,81.675,0.69294759]
[1772977177438,0.69035368,81.718,81.678,0.69294759]
[1772977180443,0.69035368,81.716,81.68,0.69294759]
[1772977183351,0.69035368,81.714,81.681,42.8496223]
[1772977183650,0.69035368,81.714,81.682,0.69294759]
[1772977187832,0.69035368,81.712,81.64,103.6]
[1772977188034,4.82477569,81.705,81.613,12.25294989]
[1772977188243,3.69383402,81.682,81.603,12.25445142]
[1772977188539,0.69035368,81.662,81.603,42.89057999]
[1772977188955,0.69035368,81.66,81.603,12.25445142]
[1772977189247,0.69035368,81.658,81.599,12.94798821]
[1772977189451,0.69035368,81.657,81.599,12.94798821]
[1772977189929,0.69035368,81.655,81.6,0.69294759]
[1772977192453,0.69035368,81.653,81.603,0.69294759]
[1772977194935,0.69035368,81.651,81.604,12.25430125]
[1772977195141,0.69035368,81.651,81.606,0.69294759]
[1772977196865,0.28432314,81.675,81.583,2.53891258]
[1772977196866,0.69035368,81.663,81.609,0.69294759]
[1772977201171,0.69035368,81.657,81.584,12.25730535]
[1772977201386,0.69035368,81.657,81.56,0.79294759]
[1772977201387,3.69383402,81.641,81.56,0.79294759]
[1772977201586,0.69035368,81.621,81.56,0.1]
[1772977201882,0.69035368,81.62,81.561,12.26076188]
[1772977202252,0.69035368,81.61,81.55,0.1]
[1772977202475,0.69035368,81.599,81.55,0.1]
[1772977202676,0.66579785,81.586,81.514,30.66932732]
[1772977202891,5.49057354,81.569,81.509,2.3945706]
[1772977203170,0.66579785,81.554,81.51,0.71280611]
[1772977203372,0.38321275,81.568,81.512,0.71280611]
[1772977203550,0.38321275,81.565,81.512,0.71280611]
[1772977203755,0.38321275,81.565,81.509,1.52372754]
[1772977204061,0.38438445,81.562,81.51,0.71280611]
[1772977205070,12.26076188,81.561,81.512,0.996594]
[1772977205275,12.26076188,81.561,81.513,0.71227086]
[1772977206859,30.64576277,81.578,81.512,0.28432314]
[1772977206860,12.25974933,81.568,81.515,0.71227086]
[1772977207069,0.38892544,81.585,81.518,0.996594]
[1772977207284,0.38892544,81.585,81.519,0.71227086]
[1772977207459,0.38892544,81.584,81.519,0.71227086]
[1772977207778,0.38892544,81.581,81.519,0.71227086]
[1772977209378,0.39109866,81.579,81.521,0.996594]
[1772977209575,0.39109866,81.579,81.522,0.71227086]
[1772977213271,12.25820686,81.578,81.525,0.71227086]
[1772977213578,12.25820686,81.578,81.528,0.71227086]
[1772977213774,12.25640397,81.59,81.528,0.71227086]
[1772977213981,0.39389552,81.612,81.533,4.40610488]
[1772977214164,12.25443147,81.604,81.536,0.71227086]
[1772977214365,0.39389552,81.603,81.536,0.71227086]
[1772977214672,0.39389552,81.603,81.538,0.71227086]
[1772977215061,0.39389552,81.603,81.54,0.71227086]
[1772977215473,12.2546016,81.602,81.545,0.71227086]
[1772977215780,12.2546016,81.602,81.546,0.71227086]
[1772977216878,0.39450105,81.601,81.546,0.71227086]
[1772977218579,0.39470078,81.599,81.548,0.71227086]
[1772977220082,0.39509542,81.614,81.549,0.71227086]
[1772977220962,0.39528909,81.612,81.552,0.71227086]
[1772977221683,12.25294989,81.613,81.552,0.71227086]
[1772977221864,12.25069828,81.628,81.555,0.71227086]
[1772977222693,0.39546996,81.645,81.565,0.71227086]
[1772977222863,0.39566681,81.643,81.57,0.71227086]
[1772977223181,12.24829748,81.644,81.575,0.71227086]
[1772977223384,0.39566681,81.643,81.576,0.71227086]
[1772977225575,0.39602999,81.641,81.581,0.996594]
[1772977225889,0.39602999,81.641,81.582,0.71227086]
[1772977226589,42.87009136,81.642,81.587,0.71227086]
[1772977226590,12.64510956,81.64,81.587,0.71227086]
[1772977226790,0.39638095,81.639,81.587,0.71227086]
[1772977227196,0.39638095,81.639,81.588,0.71227086]
[1772977228875,0.39673425,81.637,81.591,0.71227086]
[1772977231391,0.39708058,81.635,81.593,0.71227086]
[1772977231597,12.24949777,81.636,81.594,0.71227086]
[1772977231897,12.64674898,81.636,81.594,0.71227086]
[1772977232094,0.39725121,81.635,81.594,0.71227086]
[1772977233577,0.39758333,81.643,81.597,0.68659153]
[1772977237195,0.39820546,81.649,81.6,0.68659153]
[1772977237397,12.24679746,81.654,81.6,0.68659153]
[1772977237797,3.69383402,81.681,81.599,0.28432314]
[1772977237798,12.16140581,81.7,81.603,0.68659153]
[1772977237988,12.2425765,81.683,81.616,0.68659153]
[1772977238193,0.39836889,81.686,81.619,0.68659153]
[1772977238383,12.24338922,81.677,81.619,0.68659153]
[1772977238579,0.39836889,81.668,81.62,0.97091467]
[1772977238780,0.39836889,81.668,81.619,3.71838838]
[1772977239002,0.39852083,81.667,81.619,3.71838838]
[1772977239206,0.39852083,81.665,81.619,3.71838838]
[1772977239684,0.39852083,81.665,81.62,12.25189904]
[1772977240084,0.39852083,81.665,81.62,12.93849057]
[1772977241104,0.39881122,81.663,81.621,0.68659153]
[1772977241998,0.39881122,81.663,81.619,3.71838838]
[1772977243400,0.39910744,81.661,81.619,3.71838838]
[1772977245898,0.39954017,81.658,81.619,3.71838838]
[1772977246793,0.28432314,81.656,81.604,0.68659153]
[1772977247206,0.28432314,81.656,81.606,0.7342421]
[1772977247409,42.86064168,81.66,81.607,0.7342421]
[1772977247995,42.85591839,81.669,81.609,0.28432314]
[1772977248198,42.85591839,81.669,81.61,0.7342421]
[1772977248416,12.24454811,81.669,81.61,0.7342421]
[1772977248910,0.2,81.67,81.613,0.7342421]
[1772977249514,12.24133897,81.691,81.616,0.7342421]
[1772977250096,0.28432314,81.714,81.621,0.7342421]
[1772977250294,0.28432314,81.714,81.622,0.7342421]
[1772977250509,0.28432314,81.714,81.623,1.01856524]
[1772977250718,0.28432314,81.714,81.624,0.7342421]
[1772977250899,0.28432314,81.714,81.625,0.7342421]
[1772977251815,5.10909883,81.714,81.626,0.7342421]
[1772977251993,0.28432314,81.71,81.626,1.01856524]
[1772977252310,0.28432314,81.705,81.63,0.7342421]
[1772977254832,0.14216157,81.703,81.632,0.87640367]
[1772977255493,0.14216157,81.701,81.632,0.87640367]
[1772977258032,43.12345606,81.701,81.635,0.7342421]
[1772977258406,0.28432314,81.699,81.635,0.7342421]
[1772977259127,42.83913292,81.701,81.635,0.7342421]
[1772977260124,30.59938066,81.701,81.638,0.7342421]
[1772977262327,0.28432314,81.711,81.641,0.7342421]
[1772977264527,104.31203122,81.709,81.644,0.7342421]
[1772977264732,0.28432314,81.705,81.644,0.7342421]
[1772977265417,0.28432314,81.703,81.644,0.7342421]
[1772977265822,42.83493862,81.709,81.644,0.7342421]
[1772977266434,42.83493862,81.709,81.643,0.28432314]
[1772977266435,12.23855389,81.709,81.646,1.01856524]
[1772977266618,12.23855389,81.709,81.647,0.7342421]
[1772977266809,3.69383402,81.706,81.63,1.22503981]
[1772977267013,152.98192364,81.709,81.611,0.7342421]
[1772977267014,3.69383402,81.698,81.611,0.7342421]
[1772977267212,8.51860971,81.693,81.611,0.7342421]
[1772977267427,8.51860971,81.685,81.611,0.7342421]
[1772977267627,4.82477569,81.681,81.611,0.7342421]
[1772977267823,7.72420113,81.693,81.606,0.7342421]
[1772977267824,8.51860971,81.673,81.606,0.7342421]
[1772977268154,0.28432314,81.672,81.606,0.7342421]
[1772977268913,0.28432314,81.67,81.608,0.7342421]
[1772977271426,3.69383402,81.666,81.608,0.7342421]
[1772977271740,0.28432314,81.665,81.608,0.7342421]
[1772977275328,0.28432314,81.663,81.61,0.7342421]
[1772977276949,0.14216157,81.663,81.61,0.7342421]
[1772977277323,0.28432314,81.663,81.61,0.7342421]
[1772977279547,42.86011682,81.661,81.612,0.7342421]
[1772977280049,0.28432314,81.66,81.612,0.7342421]
[1772977280346,0.28432314,81.66,81.592,0.7342421]
[1772977280551,0.28432314,81.655,81.592,0.7342421]
[1772977281756,0.28432314,81.653,81.594,0.7342421]
[1772977284153,104.10160315,81.651,81.594,0.7342421]
[1772977284352,0.28432314,81.65,81.596,0.7342421]
[1772977286244,0.28432314,81.642,81.59,0.7342421]
[1772977286450,0.28432314,81.64,81.59,0.7342421]
[1772977287331,62.0,81.641,81.59,0.7342421]
[1772977287332,0.28432314,81.638,81.59,0.7342421]
[1772977287538,42.87166672,81.639,81.591,0.7342421]
[1772977287738,12.24904763,81.639,81.592,0.7342421]